Cogmind - Beta 13 @@@ ROGUE MODE // 2024.05.25 @ 18:40:41 Player: BatSpy Result: Destroyed by as-64821 with Assembled Maul Performance ------------- Evolutions (0) 0 Regions Visited (2) 400 Robots Destroyed (6) 30 Value Destroyed (128) 128 Prototype IDs (2) 40 Alien Tech Used (0) 0 Bonus (74) 74 TOTAL SCORE: 672 Bonus ------- Follower Combat Kills 74 Cogmind --------- Core Integrity 0/250 Matter 241/300 Energy 100/100 System Corruption 8% Temperature Cool (0) Movement Core (350) Ox6 Location -10/Mines Parts ------- > --- POWER (1) -------- (None) > --- PROPULSION (2) --- (None) > --- UTILITY (2) ------ Large Storage Unit > --- WEAPON (2) ------- Light Assault Rifle > --- INVENTORY (15) --- Hover Unit Flight Unit Heat Sink Sensor Array Experimental Sensor Array Datajack Peak State ------------ > --- POWER ------------ Ion Engine > --- PROPULSION ------- Wheel Wheel > --- UTILITY ---------- Large Storage Unit Seismic Detector > --- WEAPON ----------- Particle Gun Assault Rifle > --- INVENTORY -------- Light Ion Engine Aluminum Leg Aluminum Leg Hover Unit Heat Sink Sensor Array Experimental Sensor Array Light Assault Rifle Light Assault Rifle Light Assault Rifle Grenade Launcher Datajack [Rating: 10] Favorites ----------- Power Ion Engine Engine Ion Engine Propulsion Wheel Leg Aluminum Leg Wheel Wheel Utility Seismic Detector Device Seismic Detector Storage Large Storage Unit Weapon Assault Rifle Energy Gun Particle Gun Ballistic Gun Assault Rifle Launcher Grenade Launcher Special Melee Weapon Datajack Build | -11 -10 -10 ------- Run | Yrd Mat Min Slots Evolved . | . . . Power . | . . . Propulsion . | . . . Utility . | . . . Weapon . | . . . Parts Attached 21 | 6 4 11 Power 3 | 1 . 2 Engine 3 | 1 . 2 Core . | . . . Reactor . | . . . Propulsion 5 | 3 . 2 Treads . | . . . Leg 3 | 1 . 2 Wheel 2 | 2 . . Hover . | . . . Flight . | . . . Utility 3 | . 2 1 Device 2 | . 2 . Storage 1 | . . 1 Processor . | . . . Hackware . | . . . Protection . | . . . Artifact . | . . . Weapon 10 | 2 2 6 Energy Gun 3 | 1 . 2 Energy Cannon . | . . . Ballistic Gun 5 | 1 1 3 Ballistic Cannon . | . . . Launcher 1 | . . 1 Special Weapon . | . . . Impact Weapon . | . . . Slashing Weapon . | . . . Piercing Weapon . | . . . Special Melee Weapon 1 | . 1 . Unidentified Prototypes . | . . . Parts Lost 12 | . . 12 Power 2 | . . 2 Propulsion 4 | . . 4 Utility 1 | . . 1 Weapon 5 | . . 5 Highest Loss Streak 12 | . . 12 To Critical Strikes . | . . . Average Slot Usage (%) 92 | . 85 95 Engine 13 | . 14 12 Wheel 26 | . 28 25 Device 14 | . 14 15 Storage 8 | . . 11 Energy Gun 12 | . 14 12 Ballistic Gun 13 | . 12 14 Naked Turns . | . . . Heaviest Build 31 | 9 11 31 Greatest Support 20 | 20 20 20 Greatest Overweight (x) 7 | . . 7 Average Overweight (x) . | . . . Largest Inventory Capacity 15 | 5 5 15 Average Capacity 10 | 5 5 13 Most Carried 13 | 5 4 13 Average Carried 7 | 1 2 9 Final Capacity 15 | 5 5 15 Final Carried 6 | 1 3 6 Class Distribution -------------------- 100% | Mutant Dominant Class ---------------- Mutant | -10/Materials Mutant | -10/Mines Resources | -11 -10 -10 ----------- Run | Yrd Mat Min Matter Collected 420 | 191 84 145 Remotely . | . . . Salvage Created 174 | . 84 90 Parts 9 | . 5 4 Haulers Intercepted . | . . . Recyclers Shooed . | . . . Parts Field Recycled . | . . . Retrieved Matter . | . . . Parts Self-Destructed . | . . . Prevented . | . . . Kills | -11 -10 -10 ------- Run | Yrd Mat Min Combat Hostiles Destroyed 12 | . 2 10 Guns 10 | . 2 8 AOE 2 | . . 2 Classes Destroyed 3 | . 1 2 Swarmer 4 | . . 4 Grunt 2 | . 2 . Assembled 6 | . . 6 Best Kill Streak 5 | . 2 5 Combat Bots Only 5 | . 2 5 Max Kills in Single Turn 2 | . 1 2 Gunslinging . | . . . Exploded 2 | . . 2 Melee . | . . . Uniques/NPCs Destroyed . | . . . Combat | -11 -10 -10 -------- Run | Yrd Mat Min Hostile Shots Fired 103 | . 7 96 Missed 26 | . 2 24 Damage Taken 1256 | . 54 1202 Core 258 | . 12 246 Absorbed by Shields . | . . . Core Remaining (%) 100 | 100 . . Volleys Fired 46 | . 7 39 Largest 2 | . 2 2 Hottest 85 | . 70 85 Shots Fired 72 | . 13 59 Gun 69 | . 13 56 Cannon . | . . . Launcher 3 | . . 3 Special . | . . . Kinetic 49 | . 7 42 Thermal 20 | . 6 14 Explosive 3 | . . 3 Electromagnetic . | . . . Robot Hit Streak 5 | . 3 5 Robot Miss Streak 4 | . 2 4 Penetration Max . | . . . Secondary Targets . | . . . Shots Hit Robots 36 | . 8 28 Core Hits 27 | . 3 24 Critical Kills . | . . . Critical Parts Destroyed . | . . . Critical Strikes . | . . . Melee Attacks 3 | . 3 . Impact . | . . . Slashing . | . . . Piercing . | . . . Sneak Attacks 3 | . 3 . Combat Hostiles . | . . . Follow-up Attacks . | . . . Damage Inflicted 599 | . 61 538 Guns 404 | . 61 343 Cannons . | . . . Explosions 195 | . . 195 Melee . | . . . Ramming . | . . . Kinetic 293 | . 35 258 Thermal 111 | . 26 85 Explosive 195 | . . 195 Electromagnetic . | . . . Impact . | . . . Slashing . | . . . Piercing . | . . . Highest Corruption 8 | . . 8 Average Corruption 6 | . . 6 Corruption Purged . | . . . Corruption Blocked . | . . . Effects 4 | . . 4 Matter Fused 1 | . . 1 Heat Flow Errors 1 | . . 1 Weapon Failures 2 | . . 2 Overload Shots . | . . . Overflow Damage 40 | . . 40 Projectiles . | . . . Explosions 40 | . . 40 Melee . | . . . Knockbacks . | . . . Impact . | . . . Kinetic . | . . . Secondary . | . . . Self-Inflicted Damage 79 | . . 79 Shots 2 | . . 2 Rammed 1 | . . 1 Targets Rammed 1 | . . 1 Kicked . | . . . Crushed . | . . . Highest Temperature 139 | . 45 139 Average Temperature 32 | . 26 33 Received Heat Transfer 137 | . 30 107 Siege Activations . | . . . Robots Corrupted . | . . . Combat Hostiles . | . . . Parts Fried . | . . . Impact Corruptions . | . . . Robots Melted . | . . . Combat Hostiles . | . . . Parts Melted . | . . . Heat Transferred 296 | . 74 222 Parts Sabotaged . | . . . Parts Stolen . | . . . Parts Stripped . | . . . Power Chain Reactions . | . . . Alert | -11 -10 -10 ------- Run | Yrd Mat Min Peak Influence 176 | . 114 176 Initial 44 | . . 44 Average 76 | . 72 83 Maximum Alert Level . | . . . Low Security (%) 100 | 100 100 100 Level 1 . | . . . Level 2 . | . . . Level 3 . | . . . Level 4 . | . . . Level 5 . | . . . High Security . | . . . Max Security . | . . . Squads Dispatched 2 | . 2 . Investigation 1 | . 1 . Extermination . | . . . Reinforcement 1 | . 1 . Assault . | . . . Garrison . | . . . Intercept . | . . . Searches Triggered . | . . . Construction Impeded . | . . . Haulers Reinforced . | . . . Active Scanning Responses . | . . . Cargo Convoy Interrupts . | . . . Stealth | -11 -10 -10 --------- Run | Yrd Mat Min Distress Signals . | . . . Communications Jammed . | . . . Distress Signals . | . . . Times Spotted 23 | . 5 18 Peak Tracking Total 5 | . 2 5 Tactical Retreats 1 | . . 1 Traps | -11 -10 -10 ------- Run | Yrd Mat Min Traps Triggered 1 | . 1 . Indirectly . | . . . Trap Hack Attempts . | . . . Triggered . | . . . Disarmed . | . . . Reprogrammed . | . . . Reused . | . . . Traps Extracted . | . . . Installed . | . . . Triggered . | . . . Machines | -11 -10 -10 ---------- Run | Yrd Mat Min Machines Disabled 2 | . . 2 Max in Single Turn 1 | . . 1 Machines Repaired . | . . . Machines Dismantled . | . . . Machines Sabotaged . | . . . Overloaded Fab Kills . | . . . Hacking | -11 -10 -10 --------- Run | Yrd Mat Min Machines Accessed 7 | . 5 2 Terminals 6 | . 4 2 Fabricators . | . . . Repair Stations . | . . . Recycling Units 1 | . 1 . Scanalyzers . | . . . Garrison Access . | . . . Total Hacks 18 | . 12 6 Successful 8 | . 5 3 Failed 10 | . 7 3 Catastrophic 2 | . 1 1 Database Lockouts . | . . . Manual 4 | . 2 2 Terminals 17 | . 11 6 Fabricators . | . . . Repair Stations . | . . . Recycling Units 1 | . 1 . Scanalyzers . | . . . Garrison Access . | . . . Terminal Hacks 7 | . 4 3 Record 2 | . 1 1 Prototype ID Bank 1 | . 1 . Zone Layout 4 | . 2 2 Fabricator Hacks . | . . . Repair Station Hacks . | . . . Recycling Unit Hacks 1 | . 1 . Report Inventory 1 | . 1 . Scanalyzer . | . . . Garrison Access Hacks . | . . . Unauthorized Hacks . | . . . Terminals . | . . . Fabricators . | . . . Repair Stations . | . . . Recycling Units . | . . . Scanalyzers . | . . . Garrison Access . | . . . Data Cores Recovered . | . . . Used . | . . . Hacking Detections 2 | . 2 . Full Trace Events 1 | . 1 . Feedback Events . | . . . Feedback Blocked . | . . . Robot Schematics Acquired . | . . . Robots Built . | . . . Authchips . | . . . Time . | . . . Total Robot Build Rating . | . . . Part Schematics Acquired . | . . . Parts Built . | . . . Authchips . | . . . Time . | . . . Total Part Build Rating . | . . . Parts Repaired . | . . . Time . | . . . Parts Recycled . | . . . Recycled Matter . | . . . Retrieved Matter . | . . . Retrieved Components . | . . . Parts Scanalyzed . | . . . Part Schematics Acquired . | . . . Parts Damaged . | . . . Bothacking | -11 -10 -10 ------------ Run | Yrd Mat Min Used RIF Installer . | . . . Robots Hacked 1 | . 1 . Non-combat 1 | . 1 . Combat . | . . . Robot Hacks Applied 2 | . 2 . parse_system 1 | . 1 . no_distress 1 | . 1 . Relay Couplers Released . | . . . Fabnet Peak Effective % . | . . . Robots Rewired . | . . . Allies Hacked . | . . . Hacks Repelled . | . . . Allies | -11 -10 -10 -------- Run | Yrd Mat Min Total Allies 2 | . . 2 Largest Group 2 | . . 2 Highest-Rated Group 44 | . . 44 Highest-Rated Ally 31 | . . 31 Total Orders . | . . . Ally Attacks 10 | . . 10 Total Damage 126 | . . 126 Kills 4 | . . 4 Allies Corrupted . | . . . Allies Melted . | . . . Intel | -11 -10 -10 ------- Run | Yrd Mat Min Robot Analysis Total . | . . . Derelict Logs Recovered 2 | . . 2 Drone Launches . | . . . Drone Recoveries . | . . . Exploration | -11 -10 -10 ------------- Run | Yrd Mat Min Turns Passed 978 | 52 222 704 Spaces Moved 851 | 47 212 592 Core 12 | 10 . 2 Treads . | . . . Legs 3 | . . 3 Wheels 836 | 37 212 587 Hover . | . . . Flight . | . . . Fastest Speed 50 | 50 80 80 Average Speed 88 | 73 80 93 Slowest Speed 400 | 80 80 400 Overloaded Moves . | . . . Propulsion Burnouts . | . . . Robots Hopped . | . . . Cave-ins Triggered . | . . . Exploration Rate (%) 49 | 3 54 91 Regions Visited 2 Branch Regions 1 Pre-discovered Areas . | . . . Known Exits Taken . | . . . Unknown Exits Taken 2 | 1 1 . Scrap Searched 2 | . . 2 Spaces Dug . | . . . Terrain Destroyed 24 | . . 24 Melee . | . . . Projectile . | . . . AOE 24 | . . 24 Terrain Rammed . | . . . Walls Destroyed . | . . . Machines Disabled . | . . . Actions | -11 -10 -10 --------- Run | Yrd Mat Min Total 1001 | 64 248 689 Wait 54 | 2 19 33 Move 849 | 46 211 592 Hop . | . . . Pick Up 23 | 8 4 11 Fast Attach . | . . . Attach 14 | 5 2 7 Detach . | . . . Swap 7 | 1 2 4 Drop 4 | 2 . 2 Fire 46 | . 7 39 Melee 3 | . 3 . Ram 1 | . . 1 Kick . | . . . Crush . | . . . Escape Stasis . | . . . Rewire . | . . . Trap . | . . . Miscellaneous . | . . . Route ------- -11/Scrapyard -10/Materials -10/Mines (discovered 3 exits: [*Mat x2] / [*Exi]) History --------- Turn | Location | Event 11 | -11/Scrapyard | Discovered new exit (range 16) 53 | -11/Scrapyard | Entered Materials 259 | -10/Materials | Discovered new exit (range 16) 275 | -10/Materials | Entered Mines 299 | -10/Mines | Found a damaged Exp. Sensor Array with a note attached 300 | -10/Mines | Found Prototype Device 306 | -10/Mines | Build established: Mutant 380 | -10/Mines | Learned Materials terminal intel 474 | -10/Mines | Discovered new exit (range 7) 650 | -10/Mines | Deemed a non-threat by the Exiles lab entrance 651 | -10/Mines | Discovered new exit (range 5) 714 | -10/Mines | Learned Materials trap positions 788 | -10/Mines | Discovered new exit (range 16) 875 | -10/Mines | Assembled infested the area 922 | -10/Mines | Core integrity fell below 50% 967 | -10/Mines | Core integrity fell below 20% 979 | -10/Mines | Destroyed by as-64821 with Assembled Maul Last Messages --------------- 00938_ Lgt. Assault Rifle destroyed. 00939_ as-65545 destroyed. 00940_ as-26332 destroyed. 00940_ Knocked back. 00941_ The unstable cave ceiling collapses. 00947_ Knocked back. 00947_ Aluminum Leg destroyed. 00951_ Knocked back. 00951_ Aluminum Leg destroyed. 00953_ Lgt. Assault Rifle destroyed. 00955_ as-38246 destroyed. 00957_ The unstable cave ceiling collapses. 00960_ System corrupted: Heat flow error (+130). 00961_ Particle Gun destroyed. 00961_ System corrupted by crushing effect (+2). 00961_ Knocked back. 00970_ Acquired 11 matter. 00974_ as-44942 destroyed. 00975_ Acquired 14 matter. 00975_ Knocked back. Map ----- +----------------------------------------------------+ | | | | | | | | | | | | | | | | | ???????????????????????????????? | | ???????????????????????????????? | | ?????#########################?? | | ?????# #?? | | ?????# #?? | | ?????# """ """ """ """ """ #?? | | ?????# """ """ """ """ """ #?? | | ?????# """ """ " " """ """ #?? | | ????## % #?? | | ????# "" """ """ """ """ #?? | | ????# " """ """ """ """ #?? | | ????# """ """ """ """ #?? | | ???## #?? | | ???# # ######### #########?? | | ???# % # ##??# #????????? | | ???# % #### ##????????? | | ???## #a[## ## ##?????????? | | ????# @%= < ############ | | ????###*! | | ??????### #### | | ?????????##??# ! ############# | | ?????????????# %##???????????? | | ?????????????# ###????????????? | | ?????????????# #??????????????? | | ?????????????# #??????????????? | | ????????????? = ??????????????? | | ???????????? %= ??????????????? | | ??????????? ??????????????? | | ?????????? ?????????????? | | ?????????##??## ?????????????? | | ???????????????# ?????????????? | | ????????????????# ?????????????? | | ????????????????? #????????????? | | ????????????????? #??########### | | ????????????????????? | | ?????????????????????########### | | ???????????????????????????????? | | ???????????????????????????????? | | ???????????????????????????????? | | ???????????????????????????????? | | ???????????????????????????????? | | ???????????????????????????????? | +----------------------------------------------------+ Best States ------------- Heat Dissipation 35 Energy Generation 10 Energy Capacity 250 Matter Stores 300 Matter Capacity 300 Sight Range 16 Terrain Scan Density 10 Evasion (%) 50 Item Schematics ----------------- None Robot Schematics ------------------ None Fabricated ------------ Nothing Alien Tech Used ----------------- None Achievements -------------- None Challenges ------------ None Game ------ Seed PhysicsRiotDriver Manual? 0 Play Time 00:13:59 Cumulative 19.9 hours Start 2024.05.25 @ 18:24:44 End 2024.05.25 @ 18:40:41 Sessions 1 Manual Loads 0 Difficulty Rogue Special Mode None Game No. 41 Rogue 41 Adventurer 0 Explorer 0 Win Type - Total 0 Types 0/0/0/0/0/0/0/0/0 Lore% 23 Gallery% 30 Achievement% 24 Wizard Run 0 Options --------- Layout 1 ASCII 0 Keyboard 0 Movement Mouse Keybinds 0 Fullscreen 2 Font 32/Smallcaps Map View 50x35 Zoom Use 0% Tactical HUD 1 Map Filters NONE Filters NONE Steam 1 RUN: ce8815d1-1d37-4059-aafd-663611cfa27f